bitfinex-derivatives/quotes_SOLF0:USTF0_20250216
["timestamp","ask_amount","ask_price","bid_price","bid_amount"]
[1739749390526,7.04326724,188.85,188.77,7.04326724]
[1739749390924,7.04326724,188.85,188.79,0.0356813]
[1739749391929,7.04326724,188.83,188.79,0.0356813]
[1739749392128,7.04326724,188.83,188.76,5.2967]
[1739749392129,7.04326724,188.83,188.75,12.34046724]
[1739749392329,7.04326724,188.83,188.79,0.03993606]
[1739749392730,5.2957,188.81,188.79,0.03993606]
[1739749392934,7.04326724,188.83,188.79,0.03993606]
[1739749393335,5.2956,188.81,188.79,0.03993606]
[1739749393939,5.2958,188.8,188.79,0.03993606]
[1739749396638,12.33886724,188.81,188.79,0.03993606]
[1739749396833,7.04326724,188.81,188.79,0.03993606]
[1739749398042,12.33886724,188.81,188.79,0.03993606]
[1739749398244,7.04326724,188.83,188.79,0.03993606]
[1739749398543,7.04326724,188.85,188.77,7.04326724]
[1739749398738,7.04326724,188.83,188.79,0.0365337]
[1739749398936,5.2956,188.81,188.79,0.0365337]
[1739749399138,5.2956,188.81,188.78,0.03629184]
[1739749400543,5.2958,188.8,188.78,0.03629184]
[1739749401750,5.2961,188.79,188.78,0.03629184]
[1739749402145,12.33936724,188.79,188.78,0.03629184]
[1739749402443,7.04326724,188.79,188.68,5.299]
[1739749402747,7.04326724,188.75,188.68,5.299]
[1739749402948,5.2975,188.74,188.67,7.04326724]
[1739749403144,5.2975,188.74,188.67,12.34246724]
[1739749403547,0.0338953,188.72,188.69,0.0345977]
[1739749404551,7.04326724,188.79,188.71,7.04326724]
[1739749405049,5.2968,188.77,188.71,12.34146724]
[1739749405245,7.04326724,188.79,188.71,7.04326724]
[1739749405645,12.33956724,188.79,188.71,7.04326724]
[1739749405847,7.04326724,188.81,188.73,7.07752501]
[1739749406048,7.04326724,188.83,188.75,7.04326724]
[1739749406351,7.04326724,188.83,188.75,7.08244614]
[1739749406644,7.04326724,188.85,188.77,7.04326724]
[1739749407039,7.04326724,188.85,188.79,0.03551022]
[1739749407550,7.04326724,188.85,188.79,5.33161022]
[1739749407949,7.04326724,188.85,188.79,0.03551022]
[1739749408649,201.04326724,188.87,188.81,5.2954]
[1739749409050,201.04326724,188.87,188.79,7.07877746]
[1739749409247,206.33706724,188.87,188.79,7.07877746]
[1739749410349,206.33706724,188.87,188.81,5.2955]
[1739749411047,7.04326724,188.93,188.85,7.04326724]
[1739749411641,7.04326724,188.93,188.87,0.03347614]
[1739749412150,12.33546724,188.93,188.87,5.32717614]
[1739749412653,5.2922,188.93,188.87,5.32717614]
[1739749413047,5.2915,188.96,188.88,5.2933]
[1739749414051,5.2916,188.95,188.88,5.2933]
[1739749414351,11.00508132,188.97,188.88,5.2933]
[1739749414753,5.2916,188.95,188.88,5.2933]
[1739749415350,5.2916,188.95,188.89,5.2932]
[1739749416052,3.1844,188.99,188.87,0.03347614]
[1739749416453,3.1844,188.99,188.87,3.1795]
[1739749416654,3.1844,188.99,188.91,0.03489047]
[1739749416953,5.2913,188.96,188.91,0.03489047]
[1739749417650,5.2919,188.94,188.91,0.03489047]
[1739749417855,3.1844,188.99,188.91,0.03489047]
[1739749418857,5.2917,188.95,188.91,0.03489047]
[1739749419058,3.1844,188.99,188.91,5.32749047]
[1739749419355,5.2913,188.96,188.91,0.03489047]
[1739749419547,11.00508132,189.0,188.91,0.03489047]
[1739749420354,11.00508132,189.0,188.92,5.2924]
[1739749421053,11.00508132,189.03,188.91,0.03489047]
[1739749421259,11.00508132,189.03,188.89,11.00508132]
[1739749421454,11.00508132,189.03,188.95,0.03716528]
[1739749421655,5.2905,188.99,188.95,0.03716528]
[1739749422260,11.00508132,189.03,188.95,0.03716528]
[1739749422261,5.2902,189.01,188.95,0.03716528]
[1739749422454,11.00508132,189.03,188.95,0.03716528]
[1739749422758,194.0,189.05,188.95,0.03716528]
[1739749422964,5.2896,189.02,188.96,5.2911]
[1739749423858,5.2902,189.0,188.95,5.32866528]
[1739749424051,11.00508132,189.03,188.95,0.03716528]
[1739749424454,5.2909,188.98,188.95,0.03716528]
[1739749424858,11.00508132,189.0,188.95,0.03716528]
[1739749425258,5.2913,188.96,188.95,0.03716528]
[1739749428364,0.03698788,188.97,188.87,8.4732]
[1739749428664,0.03698788,188.97,188.87,3.1795]
[1739749428862,5.2926,188.92,188.87,3.1795]
[1739749429066,3.2126,188.99,188.87,3.1795]
[1739749429562,0.03371815,188.95,188.91,0.03442493]
[1739749430467,5.2919,188.94,188.91,0.03442493]
[1739749430765,0.03371815,188.95,188.91,0.03442493]
[1739749432270,5.2924,188.92,188.91,0.03442493]
[1739749434570,12.33696394,188.92,188.91,0.03442493]
[1739749435573,5.2936,188.88,188.83,7.04456394]
[1739749435769,5.2936,188.88,188.82,1.6541]
[1739749436373,12.33786394,188.89,188.84,5.2947]
[1739749436678,0.03984774,188.88,188.85,0.03386724]
[1739749436969,5.33344774,188.88,188.85,0.03386724]
[1739749437373,0.03984774,188.88,188.85,0.03386724]
[1739749438573,7.04456394,188.87,188.85,0.03386724]
[1739749439078,5.2941,188.86,188.85,0.03386724]
[1739749440582,0.03984774,188.88,188.85,0.03386724]
[1739749442483,5.294,188.87,188.85,0.03386724]
[1739749443082,5.2941,188.86,188.85,0.03386724]
[1739749445181,5.2957,188.81,188.76,3.2396]
[1739749445386,11.01645648,188.85,188.71,11.01645648]
[1739749445680,11.01645648,188.85,188.73,5.2975]
[1739749446187,11.01645648,188.85,188.74,5.2974]
[1739749446384,0.03995573,188.82,188.78,0.03984518]
[1739749447182,5.2955,188.81,188.78,0.03984518]
[1739749447379,0.03995573,188.82,188.78,0.03984518]
[1739749447579,11.01645648,188.79,188.67,7.34652259]
[1739749447782,5.2972,188.75,188.67,7.34652259]
[1739749448179,11.01645648,188.76,188.67,7.34652259]
[1739749448383,5.2975,188.74,188.67,7.34652259]
[1739749448682,0.03570545,188.72,188.69,0.03818261]
[1739749453282,5.2986,188.7,188.69,0.03818261]
[1739749453886,5.2995,188.67,188.61,5.3009]
[1739749454285,11.01645648,188.73,188.59,5.3014]
[1739749454785,11.01645648,188.73,188.57,15.91425648]
[1739749455087,0.03573466,188.68,188.64,0.03648961]
[1739749456792,5.2998,188.66,188.64,0.03648961]
[1739749460489,5.3,188.65,188.64,0.03648961]
[1739749460788,0.03573466,188.68,188.64,0.03648961]
[1739749461991,5.2999,188.66,188.64,0.03648961]
[1739749462390,5.2995,188.67,188.64,0.03648961]
[1739749463794,0.03573466,188.68,188.64,0.03648961]
[1739749464294,5.33513466,188.68,188.64,0.03648961]
[1739749465387,0.03573466,188.68,188.64,0.03648961]
[1739749466498,5.33493466,188.68,188.64,0.03648961]
[1739749466895,0.03573466,188.68,188.64,0.03648961]
[1739749468499,5.33493466,188.68,188.64,0.03648961]
[1739749468696,0.03573466,188.68,188.66,7.06066329]
[1739749470796,0.03573466,188.68,188.67,5.2994]
[1739749471498,5.2976,188.74,188.68,5.2991]
[1739749471697,5.2976,188.74,188.69,7.06066329]
[1739749471899,201.06066329,188.75,188.69,7.06066329]
[1739749472196,201.06066329,188.75,188.67,7.06066329]
[1739749472697,0.03409906,188.73,188.69,0.03705201]
[1739749474195,0.03409906,188.73,188.69,7.0977153]
[1739749475196,0.03409906,188.73,188.69,12.3963153]
[1739749477292,0.03409906,188.73,188.7,5.2983]
[1739749477991,0.03409906,188.73,188.71,5.2983]
[1739749478592,0.03409906,188.73,188.69,12.3963153]
[1739749481099,0.03409906,188.73,188.69,12.3965153]
[1739749484205,0.03409906,188.73,188.69,7.0977153]
[1739749484606,0.03409906,188.73,188.7,5.2984]
[1739749485703,0.03409906,188.73,188.69,7.0977153]
[1739749485903,0.03409906,188.73,188.71,12.35896329]
[1739749486501,0.03409906,188.73,188.72,5.298]
[1739749486707,0.03409906,188.73,188.71,7.06066329]
[1739749488506,5.2967,188.77,188.72,5.298]
[1739749488709,5.2967,188.77,188.72,8.5503]
[1739749489607,0.03940635,188.76,188.73,0.038244]
[1739749490510,0.03940635,188.76,188.73,7.09890729]
[1739749491711,0.03940635,188.76,188.73,12.39660729]
[1739749492312,0.03940635,188.76,188.74,5.2974]
[1739749492507,0.03940635,188.76,188.75,7.06066329]
[1739749493111,0.03940635,188.76,188.75,12.35786329]
[1739749493612,0.03940635,188.76,188.75,7.06066329]
[1739749494412,5.2959,188.8,188.75,12.35786329]
[1739749494803,5.2959,188.8,188.75,7.06066329]
[1739749495408,0.03848101,188.79,188.76,0.03526663]
[1739749496013,5.33458101,188.79,188.76,0.03526663]
[1739749496612,0.03848101,188.79,188.76,0.03526663]
[1739749497212,5.2966,188.77,188.76,0.03526663]
[1739749500312,12.35726329,188.77,188.76,0.03526663]
[1739749501616,5.2966,188.77,188.76,0.03526663]
[1739749502213,5.33478101,188.79,188.76,0.03526663]
[1739749502419,0.03848101,188.79,188.76,0.03526663]
[1739749503618,5.2966,188.78,188.76,0.03526663]
[1739749504020,5.2966,188.77,188.76,0.03526663]
[1739749504416,7.06066329,188.77,188.67,7.06066329]
[1739749504718,5.298,188.73,188.67,7.06066329]
[1739749505723,0.03974544,188.72,188.68,0.03683639]
[1739749507626,5.2986,188.71,188.68,0.03683639]
[1739749508022,0.03974544,188.72,188.68,0.03683639]
[1739749509326,5.2985,188.71,188.68,0.03683639]
[1739749510329,5.2986,188.7,188.68,0.03683639]
[1739749510529,0.03974544,188.72,188.68,0.03683639]
[1739749510830,5.2986,188.71,188.68,0.03683639]
[1739749511029,0.03974544,188.72,188.68,0.03683639]
[1739749511328,5.2989,188.69,188.68,0.03683639]
[1739749511723,7.06066329,188.71,188.68,0.03683639]
[1739749511927,5.2989,188.69,188.68,0.03683639]
[1739749515528,5.2989,188.69,188.68,3.639e-05]
[1739749515529,12.35956329,188.69,188.68,3.639e-05]
[1739749516322,7.06066329,188.69,188.57,12.01426329]
[1739749516523,5.3006,188.63,188.57,12.01426329]
[1739749517529,5.3006,188.63,188.57,17.31636329]
[1739749517830,0.04053068,188.62,188.58,0.03805436]
[1739749519134,0.04053068,188.62,188.59,7.06066329]
[1739749519627,0.04053068,188.62,188.58,5.33995436]
[1739749520135,0.04053068,188.62,188.59,12.36216329]
[1739749522233,0.04053068,188.62,188.59,7.06066329]
[1739749522831,0.04053068,188.62,188.58,0.03805436]
[1739749523337,5.34163068,188.62,188.58,0.03805436]
[1739749524033,5.3011,188.61,188.58,0.03805436]
[1739749524244,7.06066329,188.61,188.58,0.03805436]
[1739749524733,5.3014,188.6,188.58,0.03805436]
[1739749525438,0.04053068,188.62,188.58,0.03805436]
[1739749527532,0.04053068,188.62,188.58,5.33985436]
[1739749528039,0.04053068,188.62,188.58,0.03805436]
[1739749528740,5.34143068,188.62,188.58,0.03805436]
[1739749528939,0.04053068,188.62,188.58,0.03805436]
[1739749530340,0.04053068,188.62,188.58,5.33985436]
[1739749532641,0.04053068,188.62,188.58,0.03805436]
[1739749533945,7.06066329,188.61,188.58,0.03805436]
[1739749534135,5.3016,188.6,188.58,0.03805436]
[1739749535345,5.3017,188.59,188.58,0.03805436]
[1739749537446,5.3014,188.6,188.58,0.03805436]
[1739749537647,7.06066329,188.61,188.58,0.03805436]
[1739749538451,5.3017,188.59,188.58,0.03805436]
[1739749541346,12.36236329,188.59,188.58,0.03805436]
[1739749542656,12.36236329,188.59,188.58,5.436e-05]
[1739749542848,5.3033,188.54,188.51,3.2482]
[1739749543252,7.06066329,188.53,188.47,7.06066329]
[1739749543449,12.36426329,188.53,188.47,7.06066329]
[1739749544054,0.03688463,188.52,188.48,0.03873788]
[1739749545357,0.03688463,188.52,188.48,5.34323788]
[1739749545556,0.03688463,188.52,188.48,0.03873788]
[1739749546158,7.06066329,188.57,188.51,7.06066329]
[1739749546358,7.06066329,188.59,188.51,7.06066329]
[1739749546560,7.06066329,188.59,188.52,3.1672]
[1739749547153,7.06066329,188.59,188.53,7.06066329]
[1739749547359,0.03496023,188.57,188.54,0.03637722]
[1739749547553,0.03496023,188.57,188.55,5.3028]
[1739749547757,0.03496023,188.57,188.54,0.03637722]
[1739749549159,0.03496023,188.57,188.54,5.33937722]
[1739749550259,0.03496023,188.57,188.54,0.03637722]
[1739749551160,0.03496023,188.57,188.55,5.3028]
[1739749552060,0.03496023,188.57,188.54,5.33947722]
[1739749552261,0.03496023,188.57,188.54,0.03637722]
[1739749553362,5.33726023,188.57,188.54,0.03637722]
[1739749554267,0.03496023,188.57,188.54,0.03637722]
[1739749554561,7.09562352,188.57,188.54,0.03637722]
[1739749554959,12.39792352,188.57,188.54,0.03637722]
[1739749555355,7.09562352,188.57,188.54,0.03637722]
[1739749555662,5.3026,188.56,188.54,0.03637722]
[1739749557067,7.09562352,188.57,188.54,0.03637722]
[1739749557068,7.06066329,188.55,188.54,0.03637722]
[1739749557361,12.36346329,188.55,188.54,0.03637722]
[1739749558161,7.06066329,188.55,188.54,0.03637722]
[1739749558360,7.09562352,188.57,188.54,0.03637722]
[1739749558558,7.06066329,188.55,188.54,0.03637722]
[1739749558759,12.36346329,188.55,188.54,0.03637722]
[1739749559964,5.3043,188.5,188.44,3.319]
[1739749560162,7.06066329,188.49,188.44,3.319]
[1739749560865,12.36516329,188.49,188.44,8.6249]
[1739749561068,0.03732439,188.48,188.45,0.0365952]
[1739749562163,7.06066329,188.47,188.45,0.0365952]
[1739749563369,0.03732439,188.48,188.45,0.0365952]
[1739749564767,0.03732439,188.48,188.45,5.3420952]
[1739749564970,0.03732439,188.48,188.45,7.09725849]
[1739749565362,0.03732439,188.48,188.47,5.3051]
[1739749565866,7.06066329,188.53,188.49,5.3044]
[1739749566064,7.06066329,188.55,188.49,5.3044]
[1739749566261,7.06066329,188.55,188.47,7.06066329]
[1739749566461,7.06066329,188.53,188.48,5.3047]
[1739749566665,7.06066329,188.55,188.46,10.33076329]
[1739749567071,0.03599409,188.52,188.5,5.3041]
[1739749568772,0.03599409,188.52,188.49,5.34013722]
[1739749569164,0.03599409,188.52,188.49,0.03573722]
[1739749569771,5.304,188.51,188.49,0.03573722]
[1739749570168,5.33969409,188.52,188.49,0.03573722]
[1739749570471,0.03599409,188.52,188.49,0.03573722]
[1739749570771,5.33969409,188.52,188.49,0.03573722]
[1739749570966,0.03599409,188.52,188.49,0.03573722]
[1739749571573,0.03599409,188.52,188.49,5.34013722]
[1739749572573,0.03599409,188.52,188.49,0.03573722]
[1739749573171,0.03599409,188.52,188.49,5.34003722]
[1739749573370,0.03599409,188.52,188.49,0.03573722]
[1739749574975,0.03599409,188.52,188.49,5.34023722]
[1739749575274,0.03599409,188.52,188.49,0.03573722]
[1739749576867,0.03599409,188.52,188.51,5.3039]
[1739749577573,7.06066329,188.57,188.5,7.06066329]
[1739749577873,12.36146329,188.63,188.55,7.06066329]
[1739749578177,7.06066329,188.63,188.55,7.06066329]
[1739749578775,0.03352057,188.61,188.57,0.03817982]
[1739749579675,7.09418386,188.61,188.57,0.03817982]
[1739749579878,7.06066329,188.59,188.57,0.03817982]
[1739749581176,7.09418386,188.61,188.57,0.03817982]
[1739749582280,12.39548386,188.61,188.57,0.03817982]
[1739749582581,7.09418386,188.61,188.57,0.03817982]
[1739749583380,5.3016,188.6,188.57,0.03817982]
[1739749583579,7.06066329,188.59,188.57,0.03817982]
[1739749584882,7.06066329,188.59,188.47,8.63036329]
[1739749585080,7.06066329,188.53,188.47,1.5697]
[1739749585383,7.06066329,188.51,188.46,1.6541]
[1739749585582,7.06066329,188.51,188.43,7.06066329]
[1739749585977,0.03656115,188.49,188.45,0.03787012]
[1739749586375,0.03656115,188.49,188.45,5.34317012]
[1739749586981,0.03656115,188.49,188.46,5.3052]
[1739749588086,7.06066329,188.57,188.47,7.06066329]
[1739749588380,7.06066329,188.57,188.52,5.3034]
[1739749588585,12.36246329,188.59,188.52,7.06066329]
[1739749589386,0.03930313,188.57,188.54,0.03427252]
[1739749594183,5.3028,188.55,188.54,0.03427252]
[1739749595083,11.08399077,188.57,188.43,4.8608]
[1739749595281,11.04468764,188.54,188.43,4.8608]
[1739749595486,5.3046,188.49,188.43,3.213]
[1739749595687,11.04468764,188.51,188.43,3.213]
[1739749596090,5.3045,188.49,188.43,3.213]
[1739749596292,5.33795352,188.49,188.45,0.03336175]
[1739749598693,0.03345352,188.49,188.45,0.03336175]
[1739749599891,5.305,188.48,188.45,0.03336175]
[1739749600390,5.3051,188.47,188.45,0.03336175]
[1739749601396,0.03345352,188.49,188.45,0.03336175]
[1739749601994,5.3048,188.48,188.45,0.03336175]
[1739749603197,0.03345352,188.49,188.45,0.03336175]
[1739749604595,0.03345352,188.49,188.46,5.3053]
[1739749605095,0.03345352,188.49,188.45,0.03336175]
[1739749605297,0.03345352,188.49,188.47,5.3048]
[1739749605796,0.03345352,188.49,188.45,0.03336175]
[1739749606690,5.33815352,188.49,188.45,0.03336175]
[1739749607899,0.03345352,188.49,188.45,0.03336175]
[1739749608103,5.3053,188.46,188.45,0.03336175]
[1739749608690,18.31883825,188.4,188.37,11.04468764]
[1739749609498,18.31883825,188.4,188.39,5.3073]
[1739749609697,11.04468764,188.54,188.37,11.04468764]
[1739749609899,5.3048,188.48,188.4,16.35168764]
[1739749610098,11.04468764,188.54,188.41,3.1916]
[1739749610701,5.3052,188.47,188.42,5.3063]
[1739749611000,11.04468764,188.54,188.41,3.1916]
[1739749611202,0.03429595,188.46,188.43,0.03625354]
[1739749611400,11.04468764,188.54,188.43,0.03625354]
[1739749611600,0.03617891,188.46,188.43,0.03625354]
[1739749611800,5.3053,188.46,188.43,0.03625354]
[1739749612004,5.34550465,188.46,188.43,0.03625354]
[1739749613191,0.04020465,188.46,188.43,0.03625354]
[1739749613794,0.04020465,188.46,188.43,5.34225354]
[1739749613999,11.04468764,188.57,188.43,11.08094118]
[1739749614203,11.04468764,188.57,188.43,11.04468764]
[1739749614393,5.3042,188.51,188.45,5.3054]
[1739749614592,11.04468764,188.57,188.43,11.04468764]
[1739749614794,11.04468764,188.54,188.42,1.6882]
[1739749614998,5.3051,188.47,188.42,6.9946]
[1739749615197,5.3051,188.47,188.46,0.03404183]
[1739749620002,0.03482139,188.5,188.46,0.03404183]
[1739749620404,0.03482139,188.5,188.46,5.33934183]
[1739749620604,0.03482139,188.5,188.46,0.03404183]
[1739749621504,0.03482139,188.5,188.46,5.33914183]
[1739749621803,0.03482139,188.5,188.46,0.03404183]
[1739749622705,0.03482139,188.5,188.47,5.305]
[1739749622902,0.03482139,188.5,188.46,0.03404183]
[1739749623303,5.33902139,188.5,188.46,0.03404183]
[1739749624606,5.3047,188.49,188.46,0.03404183]
[1739749625708,5.3051,188.47,188.46,0.03404183]
[1739749626310,5.3047,188.49,188.46,0.03404183]
[1739749626609,0.03482139,188.5,188.46,0.03404183]
[1739749627507,5.3047,188.49,188.46,0.03404183]
[1739749627706,0.03482139,188.5,188.46,0.03404183]
[1739749628207,5.3046,188.49,188.46,0.03404183]
[1739749628413,0.03482139,188.5,188.46,0.03404183]
[1739749631410,5.3051,188.47,188.46,0.03404183]
[1739749634710,5.3063,188.43,188.39,3.2138]
[1739749635508,5.3065,188.42,188.39,3.2138]
[1739749635706,0.03928286,188.43,188.39,0.0394595]
[1739749636213,5.3066,188.42,188.39,0.0394595]
[1739749636816,0.03928286,188.43,188.39,0.0394595]
[1739749637517,5.3069,188.41,188.39,0.0394595]
[1739749638114,0.03928286,188.43,188.39,0.0394595]
[1739749638418,5.307,188.4,188.39,0.0394595]
[1739749639518,11.04468764,188.42,188.39,0.0394595]
[1739749639717,16.35118764,188.42,188.39,0.0394595]
[1739749642520,0.03928286,188.43,188.39,0.0394595]
[1739749644423,5.3068,188.41,188.39,0.0394595]
[1739749646121,11.0839705,188.43,188.39,0.0394595]
[1739749646319,5.307,188.4,188.39,0.0394595]
[1739749646518,11.0839705,188.43,188.39,0.0394595]
[1739749648023,5.307,188.4,188.39,0.0394595]
[1739749648512,11.0839705,188.43,188.39,0.0394595]
[1739749649022,5.307,188.41,188.39,0.0394595]
[1739749649319,11.0839705,188.43,188.39,0.0394595]
[1739749649523,5.307,188.4,188.39,0.0394595]
[1739749650412,5.3068,188.41,188.39,0.0394595]
[1739749650617,7.08348997,188.4,188.39,0.0394595]
[1739749651122,12.39048997,188.4,188.39,0.0394595]
[1739749654427,12.39048997,188.4,188.39,5.95e-05]
[1739749661922,5.3085,188.35,188.3,5.3097]
[1739749663130,0.04065644,188.34,188.31,0.04007231]
[1739749663428,5.34955644,188.34,188.31,0.04007231]
[1739749663835,0.04065644,188.34,188.31,0.04007231]
[1739749664029,5.309,188.33,188.31,0.04007231]
[1739749664929,7.12414641,188.34,188.31,0.04007231]
[1739749665129,12.39278997,188.32,188.31,0.04007231]
[1739749674047,7.08348997,188.32,188.31,0.04007231]
[1739749674739,12.39278997,188.32,188.31,0.04007231]
[1739749682447,5.3106,188.28,188.18,7.08348997]
[1739749682653,7.08348997,188.24,188.16,8.69938997]
[1739749682948,7.08348997,188.22,188.16,6.9294]
[1739749683355,7.08348997,188.22,188.17,5.3135]
[1739749683744,7.08348997,188.22,188.18,0.03940263]
[1739749683745,0.03726216,188.21,188.18,0.03940263]
[1739749684148,7.08348997,188.2,188.18,0.03940263]
[1739749685250,5.313,188.19,188.18,0.03940263]
[1739749685954,12.39618997,188.2,188.18,0.03940263]
[1739749687458,7.08348997,188.2,188.18,0.03940263]
[1739749688552,5.313,188.19,188.18,0.03940263]
[1739749690152,7.08348997,188.2,188.18,0.03940263]
[1739749690352,0.03726216,188.21,188.18,0.03940263]
[1739749690954,7.08348997,188.2,188.18,0.03940263]
[1739749693458,12.39618997,188.2,188.18,0.03940263]
[1739749693956,7.08348997,188.2,188.18,0.03940263]
[1739749694758,12.39638997,188.2,188.18,0.03940263]
[1739749695058,7.08348997,188.2,188.18,0.03940263]
[1739749697160,12.39618997,188.2,188.18,0.03940263]
[1739749697360,7.08348997,188.2,188.18,0.03940263]
[1739749700761,12.39648997,188.2,188.18,0.03940263]
[1739749701358,5.313,188.19,188.18,0.03940263]
[1739749701553,7.08348997,188.2,188.18,0.03940263]
[1739749706464,5.313,188.19,188.18,0.03940263]
[1739749708564,12.39628997,188.2,188.18,0.03940263]
[1739749708864,7.08348997,188.2,188.18,0.03940263]
[1739749709065,5.313,188.19,188.18,0.03940263]
[1739749709365,7.08348997,188.2,188.18,0.03940263]
[1739749709968,12.39618997,188.2,188.18,0.03940263]
[1739749710364,7.08348997,188.2,188.18,0.03940263]
[1739749710568,5.313,188.19,188.18,0.03940263]
[1739749712569,12.39618997,188.2,188.18,0.03940263]
[1739749714567,5.313,188.19,188.18,0.03940263]
[1739749717670,12.39618997,188.2,188.18,0.03940263]
[1739749718469,0.03726216,188.21,188.18,0.03940263]
[1739749718872,7.08348997,188.2,188.18,0.03940263]
[1739749720872,12.39618997,188.2,188.18,0.03940263]
[1739749723872,5.3129,188.19,188.18,0.03940263]
[1739749734176,7.08348997,188.2,188.08,10.32348997]
[1739749734377,7.08348997,188.14,188.08,3.24]
[1739749734577,7.08348997,188.12,188.08,3.24]
[1739749734775,12.39848997,188.12,188.08,3.24]
[1739749735176,7.08348997,188.12,188.08,3.24]
[1739749735375,5.3154,188.11,188.08,3.27795906]
[1739749737974,7.1187691,188.12,188.08,3.27795906]
[1739749738183,5.3155,188.1,188.08,3.27795906]
[1739749738482,12.39898997,188.1,188.08,3.27795906]
[1739749740785,7.08348997,188.1,188.08,0.03795906]
[1739749741983,5.3158,188.09,188.08,0.03795906]
[1739749742191,7.08348997,188.1,188.08,0.03795906]
[1739749744990,7.1187691,188.12,188.08,0.03795906]
[1739749745182,0.03527913,188.12,188.08,0.03795906]
[1739749745387,0.03527913,188.12,188.08,7.12144903]
[1739749745587,7.08348997,188.16,188.1,7.08348997]
[1739749745793,7.08348997,188.18,188.13,5.3146]
[1739749746179,7.08348997,188.18,188.1,7.08348997]
[1739749746383,7.08348997,188.18,188.13,5.3144]
[1739749746684,0.03352485,188.17,188.14,0.03907631]
[1739749747286,7.08348997,188.2,188.14,0.03907631]
[1739749747486,7.08348997,188.2,188.14,7.12256628]
[1739749747686,7.08348997,188.2,188.15,1.6344]
[1739749747890,7.08348997,188.2,188.15,6.9483]
[1739749748489,0.03534787,188.19,188.15,6.9483]
[1739749748685,0.03534787,188.19,188.15,1.6344]
[1739749748990,7.08348997,188.18,188.15,1.6344]
[1739749749187,7.08348997,188.18,188.14,0.03907631]
[1739749749391,7.08348997,188.16,188.14,0.03907631]
[1739749749988,12.39728997,188.16,188.14,0.03907631]
[1739749750195,7.08348997,188.16,188.14,0.03907631]
[1739749750600,7.08348997,188.18,188.14,0.03907631]
[1739749750994,7.08348997,188.22,188.18,5.3132]
[1739749751299,7.08348997,188.24,188.18,5.3132]
[1739749751499,7.08348997,188.24,188.19,1.6001]
[1739749752000,7.08348997,188.26,188.19,1.6001]
[1739749752195,7.08348997,188.28,188.22,7.08348997]
[1739749752702,7.08348997,188.24,188.2,1.63902743]
[1739749753000,7.08348997,188.22,188.2,1.63902743]
[1739749753895,0.0379644,188.23,188.2,8.7225174]
[1739749754104,7.08348997,188.28,188.22,7.08348997]
[1739749754405,7.08348997,188.28,188.23,5.3118]
[1739749754605,7.08348997,188.28,188.22,7.08348997]
[1739749754994,7.08348997,188.3,188.22,7.08348997]
[1739749755195,0.03874998,188.27,188.23,0.03696083]
[1739749755900,0.03874998,188.27,188.23,5.34856083]
[1739749758107,0.03874998,188.27,188.24,5.3115]
[1739749758299,7.08348997,188.3,188.24,5.3115]
[1739749759005,7.08348997,188.3,188.23,5.34876083]
[1739749759405,0.03500383,188.28,188.23,5.34876083]
[1739749759602,0.03500383,188.28,188.23,0.03696083]
[1739749760308,5.34540383,188.28,188.23,5.34876083]
[1739749760602,5.34540383,188.28,188.23,0.03696083]
[1739749762106,7.08348997,188.34,188.26,7.08348997]
[1739749762706,7.08348997,188.32,188.26,5.3108]
[1739749763309,0.03522583,188.31,188.27,0.0398316]
[1739749763911,0.03522583,188.31,188.28,5.3104]
[1739749764412,0.03522583,188.31,188.27,0.0398316]
[1739749765213,0.03522583,188.31,188.28,5.3101]
[1739749765714,0.03522583,188.31,188.29,5.31]
[1739749765915,0.03522583,188.31,188.27,3.2153316]
[1739749766309,0.03522583,188.31,188.27,8.5259316]
[1739749766815,0.03522583,188.31,188.27,3.2153316]
[1739749767016,7.08348997,188.3,188.27,3.2153316]
[1739749767212,5.3103,188.29,188.27,3.2153316]
[1739749768814,5.3104,188.28,188.27,0.0398316]
[1739749769213,12.39338997,188.3,188.27,0.0398316]
[1739749769511,7.08348997,188.3,188.27,0.0398316]
[1739749770015,12.39388997,188.28,188.27,0.0398316]
[1739749771316,5.312,188.23,188.16,8.75608997]
[1739749771512,5.312,188.23,188.17,1.5972]
[1739749771913,5.3121,188.22,188.17,6.9105]
[1739749772114,7.08348997,188.22,188.17,1.5972]
[1739749772517,0.04066882,188.21,188.18,0.03861591]
[1739749772717,0.04066882,188.21,188.18,7.12210588]
[1739749773017,5.3115,188.25,188.18,12.43510588]
[1739749773213,5.3115,188.25,188.18,7.12210588]
[1739749773415,5.3115,188.25,188.18,7.08348997]
[1739749773619,5.3115,188.25,188.19,5.3129]
[1739749773819,5.3115,188.25,188.18,7.08348997]
[1739749774015,0.0406926,188.23,188.2,0.0359406]
[1739749775322,5.3121,188.22,188.2,0.0359406]
[1739749777023,0.0406926,188.23,188.2,0.0359406]